fUST/lending_fUST_20250201
["ID","MTS","AMOUNT","RATE_DAILY","PERIOD"]
[351154893,1738365044907,-151.0,0.00020002,2]
[351154894,1738365044917,-151.0,0.00020002,2]
[351154895,1738365044926,-151.0,0.00020002,2]
[351154896,1738365044935,-151.0,0.00020002,2]
[351154897,1738365044945,-500.0,0.00020002,2]
[351154898,1738365044954,-500.0,0.00020002,2]
[351154899,1738365044964,-151.0,0.00020002,2]
[351154900,1738365044973,-151.0,0.00020002,2]
[351154901,1738365044983,-500.0,0.00020002,2]
[351154902,1738365044992,-151.0,0.00020002,2]
[351154903,1738365045001,-151.0,0.00020002,2]
[351154904,1738365045011,-721.500882,0.00020002,2]
[351154905,1738365045020,-721.500882,0.00020002,2]
[351154906,1738365045029,-721.500882,0.00020002,2]
[351154907,1738365045039,-721.500882,0.00020002,2]
[351154908,1738365045048,-151.0,0.00020002,2]
[351154909,1738365045057,-151.0,0.00020002,2]
[351154910,1738365045066,-151.0,0.00020002,2]
[351154911,1738365045075,-151.0,0.00020002,2]
[351154912,1738365045084,-151.0,0.00020002,2]
[351154913,1738365045094,-151.0,0.00020002,2]
[351154914,1738365045103,-153.340492,0.00020002,2]
[351154915,1738365045112,-177.478866,0.00020002,2]
[351154916,1738365045122,-177.478866,0.00020002,2]
[351154917,1738365045131,-151.0,0.00020002,2]
[351154918,1738365045141,-151.0,0.00020002,2]
[351154919,1738365045151,-177.478866,0.00020002,2]
[351154920,1738365045160,-177.478866,0.00020002,2]
[351154921,1738365045170,-500.0,0.00020002,2]
[351154922,1738365045179,-211.666978,0.00020002,2]
[351154923,1738365045188,-211.666978,0.00020002,2]
[351154924,1738365045197,-211.666978,0.00020002,2]
[351154925,1738365045206,-211.666978,0.00020002,2]
[351154926,1738365045215,-211.666978,0.00020002,2]
[351154927,1738365045225,-211.666978,0.00020002,2]
[351154928,1738365045234,-211.666978,0.00020002,2]
[351154929,1738365045243,-211.666978,0.00020002,2]
[351154930,1738365045252,-598.69910616,0.00020002,2]
[351154931,1738365045292,-205.924058,0.00019865,2]
[351154932,1738365045302,-205.924058,0.00019866,2]
[351154933,1738365045313,-40.264117,0.00020002,2]
[351154934,1738365045329,-205.924058,0.00019997,2]
[351154935,1738365045340,-4563.19677684,0.00020002,2]
[351154936,1738365045350,-470.78302992,0.00020002,2]
[351154951,1738365843729,173.939881,0.00013973,2]
[351154952,1738365955096,-297.73412875,0.00016291,2]
[351154956,1738366098511,4612.84909114,0.000125,2]
[351154957,1738366151105,-202.26587125,0.00016291,2]
[351154958,1738366151125,-168.40112006,0.00017048,2]
[351154959,1738366151149,-168.40112004,0.00017128,2]
[351154960,1738366151169,-500.0,0.00017148,2]
[351154961,1738366151191,-168.40112004,0.00017209,2]
[351154962,1738366151212,-168.40112004,0.00017289,2]
[351154963,1738366151233,-168.40112004,0.0001737,2]
[351154964,1738366151253,-168.40112004,0.0001745,2]
[351154965,1738366151283,-239.502619,0.0001755,2]
[351154966,1738366151308,-300.0,0.00017699,2]
[351154967,1738366151330,-14338.9018362,0.000177,2]
[351154968,1738366151350,-6007.72111946,0.00018,7]
[351154969,1738366151371,-500.0,0.00018051,2]
[351154970,1738366151394,-500.0,0.0001821,2]
[351154971,1738366151419,-2218.36117213,0.00018585,2]
[351155053,1738366232976,-500.0,0.0001821,2]
[351155055,1738366232986,-530.05106507,0.00018585,2]
[351155057,1738366232995,-150.0,0.000189,2]
[351155059,1738366233004,-500.0,0.00018953,2]
[351155060,1738366233013,-2268.5928978,0.00019,4]
[351155062,1738366233022,-153.515,0.0001926,2]
[351155064,1738366233032,-354.392988,0.00019452,2]
[351155066,1738366233041,-354.392988,0.00019452,2]
[351155068,1738366233050,-353.963469,0.00019452,2]
[351155070,1738366233059,-300.0,0.00019499,2]
[351155085,1738366233188,-10415.01468257,0.000195,2]
[351155088,1738366233208,-500.0,0.00019551,2]
[351155090,1738366233217,-500.0,0.00019551,2]
[351155092,1738366233227,-649.75,0.00019551,2]
[351155094,1738366233236,-500.0,0.00019551,2]
[351155096,1738366233246,-500.0,0.00019551,2]
[351155098,1738366233255,-500.0,0.00019551,2]
[351155100,1738366233264,-500.0,0.00019551,2]
[351155102,1738366233273,-500.0,0.00019551,2]
[351155104,1738366233282,-500.0,0.00019551,2]
[351155106,1738366233291,-1271.56,0.00019551,2]
[351155108,1738366233300,-172.46,0.00019552,2]
[351155110,1738366233309,-500.0,0.00019552,2]
[351155113,1738366233318,-500.0,0.00019552,2]
[351155116,1738366233339,-500.0,0.00019552,2]
[351155118,1738366233349,-500.0,0.00019552,2]
[351155120,1738366233359,-500.0,0.00019552,2]
[351155122,1738366233369,-500.0,0.00019552,2]
[351155124,1738366233379,-500.0,0.00019552,2]
[351155126,1738366233389,-500.0,0.00019552,2]
[351155128,1738366233399,-500.0,0.00019552,2]
[351155130,1738366233409,-500.0,0.00019552,2]
[351155132,1738366233421,-500.0,0.00019552,2]
[351155135,1738366233431,-500.0,0.00019552,2]
[351155137,1738366233441,-500.0,0.00019552,2]
[351155139,1738366233451,-2341.67,0.00019552,2]
[351155141,1738366233460,-500.0,0.00019552,2]
[351155143,1738366233470,-500.0,0.00019552,2]
[351155145,1738366233480,-1390.99,0.00019552,2]
[351155147,1738366233490,-500.0,0.00019552,2]
[351155149,1738366233502,-500.0,0.00019552,2]
[351155151,1738366233512,-500.0,0.00019552,2]
[351155154,1738366233522,-1543.52,0.00019552,2]
[351155155,1738366233532,-500.0,0.00019552,2]
[351155157,1738366233542,-500.0,0.00019552,2]
[351155158,1738366233551,-500.0,0.00019552,2]
[351155160,1738366233561,-500.0,0.00019552,2]
[351155161,1738366233570,-506.98,0.00019552,2]
[351155163,1738366233580,-500.0,0.00019552,2]
[351155165,1738366233590,-500.0,0.00019552,2]
[351155167,1738366233599,-500.0,0.00019552,2]
[351155168,1738366233609,-500.0,0.00019552,2]
[351155170,1738366233619,-500.0,0.00019552,2]
[351155171,1738366233628,-500.0,0.00019552,2]
[351155172,1738366233639,-500.0,0.00019552,2]
[351155173,1738366233648,-500.0,0.00019552,2]
[351155174,1738366233657,-500.0,0.00019552,2]
[351155175,1738366233668,-500.0,0.00019552,2]
[351155176,1738366233677,-1143.95,0.00019552,2]
[351155177,1738366233687,-500.0,0.00019552,2]
[351155178,1738366233697,-1923.6,0.00019552,2]
[351155179,1738366233706,-500.0,0.00019552,2]
[351155180,1738366233716,-500.0,0.00019552,2]
[351155181,1738366233726,-500.0,0.00019552,2]
[351155182,1738366233735,-500.0,0.00019552,2]
[351155183,1738366233744,-500.0,0.00019552,2]
[351155184,1738366233760,-500.0,0.00019552,2]
[351155185,1738366233769,-986.15,0.00019552,2]
[351155186,1738366233780,-1018.21,0.00019552,2]
[351155187,1738366233790,-500.0,0.00019552,2]
[351155188,1738366233799,-500.0,0.00019552,2]
[351155189,1738366233809,-516.54,0.00019552,2]
[351155190,1738366233818,-500.0,0.00019552,2]
[351155191,1738366233828,-500.0,0.00019552,2]
[351155192,1738366233838,-500.0,0.00019552,2]
[351155193,1738366233848,-500.0,0.00019552,2]
[351155194,1738366233858,-500.0,0.00019552,2]
[351155195,1738366233867,-500.0,0.00019553,2]
[351155196,1738366233877,-500.0,0.00019553,2]
[351155197,1738366233886,-500.0,0.00019553,2]
[351155198,1738366233896,-500.0,0.00019553,2]
[351155199,1738366233905,-500.0,0.00019553,2]
[351155200,1738366233915,-500.0,0.00019553,2]
[351155201,1738366233926,-500.0,0.00019553,2]
[351155202,1738366233935,-225.11849666,0.00019553,2]
[351155203,1738366233945,-500.0,0.00019553,2]
[351155204,1738366233955,-500.0,0.00019553,2]
[351155205,1738366233964,-5090.64,0.00019553,2]
[351155206,1738366233973,-500.0,0.00019553,2]
[351155207,1738366233983,-176.36598545,0.00019589,2]
[351155208,1738366233992,-500.0,0.00019678,2]
[351155209,1738366234001,-500.0,0.00019679,2]
[351155210,1738366234011,-500.0,0.00019679,2]
[351155211,1738366234020,-527.83828862,0.00019679,2]
[351155212,1738366234030,-500.0,0.00019679,2]
[351155213,1738366234040,-500.0,0.00019679,2]
[351155214,1738366234049,-500.0,0.00019679,2]
[351155215,1738366234059,-500.0,0.00019679,2]
[351155216,1738366234069,-554.51,0.00019679,2]
[351155217,1738366234078,-500.0,0.00019679,2]
[351155218,1738366234092,-533.80964002,0.00019679,2]
[351155219,1738366234101,-912.91,0.00019679,2]
[351155220,1738366234111,-500.0,0.00019679,2]
[351155221,1738366234120,-3970.6,0.00019679,2]
[351155222,1738366234129,-500.0,0.00019679,2]
[351155223,1738366234138,-500.0,0.00019679,2]
[351155224,1738366234149,-175.49,0.00019679,2]
[351155225,1738366234162,-500.0,0.00019679,2]
[351155226,1738366234172,-500.0,0.00019679,2]
[351155227,1738366234181,-500.0,0.00019679,2]
[351155228,1738366234190,-862.82,0.00019679,2]
[351155229,1738366234200,-500.0,0.00019679,2]
[351155230,1738366234210,-500.0,0.00019679,2]
[351155231,1738366234222,-500.0,0.00019679,2]
[351155232,1738366234232,-500.0,0.00019679,2]
[351155233,1738366234241,-500.0,0.00019679,2]
[351155234,1738366234251,-500.0,0.00019679,2]
[351155235,1738366234260,-500.0,0.00019679,2]
[351155236,1738366234270,-500.0,0.00019679,2]
[351155237,1738366234280,-500.0,0.00019679,2]
[351155238,1738366234289,-500.0,0.00019679,2]
[351155239,1738366234298,-500.0,0.00019688,2]
[351155240,1738366234308,-649.75,0.00019688,2]
[351155241,1738366234326,-500.0,0.00019688,2]
[351155242,1738366234340,-167.18991251,0.00019688,2]
[351155243,1738366234354,-492.8116436,0.00019688,2]
[351155244,1738366234369,-500.0,0.00019688,2]
[351155245,1738366234383,-384.06117514,0.00019688,2]
[351155246,1738366234394,-500.0,0.00019688,2]
[351155247,1738366234406,-500.0,0.00019688,2]
[351155248,1738366234420,-500.0,0.00019688,2]
[351155249,1738366234433,-207.51516722,0.00019688,2]
[351155250,1738366234444,-477.3905884,0.00019688,2]
[351155251,1738366234459,-500.0,0.00019688,2]
[351155252,1738366234473,-1271.56,0.00019688,2]
[351155253,1738366234485,-500.0,0.00019689,2]
[351155254,1738366234499,-500.0,0.00019689,2]
[351155255,1738366234512,-500.0,0.00019689,2]
[351155256,1738366234526,-500.0,0.00019689,2]
[351155257,1738366234540,-500.0,0.00019689,2]
[351155258,1738366234552,-500.0,0.00019689,2]
[351155259,1738366234563,-500.0,0.00019689,2]
[351155260,1738366234576,-500.0,0.00019689,2]
[351155261,1738366234589,-500.0,0.00019689,2]
[351155262,1738366234600,-500.0,0.00019689,2]
[351155263,1738366234614,-500.0,0.00019689,2]
[351155264,1738366234627,-2341.67,0.00019689,2]
[351155265,1738366234638,-500.0,0.00019689,2]
[351155266,1738366234650,-1390.99,0.00019689,2]
[351155267,1738366234661,-500.0,0.00019689,2]
[351155268,1738366234672,-500.0,0.00019689,2]
[351155269,1738366234683,-500.0,0.00019689,2]
[351155270,1738366234694,-1543.52,0.00019689,2]
[351155271,1738366234705,-443.80472332,0.00019689,2]
[351155272,1738366234718,-500.0,0.00019689,2]
[351155273,1738366234731,-500.0,0.00019689,2]
[351155274,1738366234744,-506.98,0.00019689,2]
[351155275,1738366234755,-500.0,0.00019689,2]
[351155276,1738366234769,-500.0,0.00019689,2]
[351155277,1738366234782,-500.0,0.00019689,2]
[351155278,1738366234795,-500.0,0.00019689,2]
[351155279,1738366234810,-500.0,0.00019689,2]
[351155280,1738366234824,-500.0,0.00019689,2]
[351155281,1738366234834,-500.0,0.00019689,2]
[351155282,1738366234844,-500.0,0.00019689,2]
[351155283,1738366234854,-500.0,0.00019689,2]
[351155284,1738366234865,-500.0,0.00019689,2]
[351155285,1738366234877,-1143.95,0.00019689,2]
[351155286,1738366234889,-500.0,0.00019689,2]
[351155287,1738366234903,-1923.6,0.00019689,2]
[351155288,1738366234915,-500.0,0.00019689,2]
[351155289,1738366234926,-500.0,0.00019689,2]
[351155290,1738366234936,-500.0,0.00019689,2]
[351155291,1738366234948,-500.0,0.00019689,2]
[351155292,1738366234960,-986.15,0.00019689,2]
[351155293,1738366234973,-1018.21,0.00019689,2]
[351155294,1738366234985,-500.0,0.00019689,2]
[351155295,1738366234996,-516.54,0.00019689,2]
[351155296,1738366235006,-500.0,0.00019689,2]
[351155297,1738366235016,-500.0,0.00019689,2]
[351155298,1738366235026,-257.17186653,0.00019689,2]
[351155299,1738366235037,-211.37,0.0001969,2]
[351155300,1738366235048,-221.83,0.0001969,2]
[351155301,1738366235059,-500.0,0.0001969,2]
[351155302,1738366235071,-500.0,0.0001969,2]
[351155303,1738366235083,-500.0,0.0001969,2]
[351155304,1738366235097,-500.0,0.0001969,2]
[351155305,1738366235109,-644.93,0.0001969,2]
[351155306,1738366235120,-5090.64,0.0001969,2]
[351155307,1738366235135,-500.0,0.0001969,2]
[351155308,1738366235146,-500.0,0.00019815,2]
[351155309,1738366235158,-500.0,0.00019816,2]
[351155310,1738366235170,-500.0,0.00019816,2]
[351155311,1738366235181,-500.0,0.00019816,2]
[351155312,1738366235192,-500.0,0.00019816,2]
[351155313,1738366235204,-554.51,0.00019816,2]
[351155314,1738366235215,-500.0,0.00019816,2]
[351155315,1738366235228,-912.91,0.00019816,2]
[351155316,1738366235239,-500.0,0.00019816,2]
[351155317,1738366235251,-3970.6,0.00019816,2]
[351155318,1738366235262,-500.0,0.00019816,2]
[351155319,1738366235274,-500.0,0.00019816,2]
[351155320,1738366235286,-500.0,0.00019816,2]
[351155321,1738366235297,-500.0,0.00019816,2]
[351155322,1738366235307,-862.82,0.00019816,2]
[351155323,1738366235320,-500.0,0.00019816,2]
[351155324,1738366235333,-500.0,0.00019816,2]
[351155325,1738366235343,-500.0,0.00019816,2]
[351155326,1738366235355,-500.0,0.00019816,2]
[351155327,1738366235366,-151.0,0.00019816,2]
[351155328,1738366235379,-500.0,0.00019816,2]
[351155329,1738366235390,-500.0,0.00019816,2]
[351155330,1738366235401,-500.0,0.00019825,2]
[351155331,1738366235411,-649.75,0.00019825,2]
[351155332,1738366235423,-500.0,0.00019825,2]
[351155333,1738366235434,-500.0,0.00019825,2]
[351155334,1738366235445,-500.0,0.00019825,2]
[351155335,1738366235457,-1271.56,0.00019825,2]
[351155336,1738366235469,-500.0,0.00019826,2]
[351155337,1738366235480,-500.0,0.00019826,2]
[351155338,1738366235491,-500.0,0.00019826,2]
[351155339,1738366235502,-500.0,0.00019826,2]
[351155340,1738366235513,-500.0,0.00019826,2]
[351155341,1738366235525,-529.04015849,0.00019826,2]
[351155342,1738366235535,-500.0,0.00019826,2]
[351155343,1738366235546,-500.0,0.00019826,2]
[351155344,1738366235558,-500.0,0.00019826,2]
[351155345,1738366235570,-500.0,0.00019826,2]
[351155346,1738366235580,-2341.67,0.00019826,2]
[351155347,1738366235591,-499.0,0.00019826,2]
[351155348,1738366235601,-500.0,0.00019826,2]
[351155349,1738366235612,-1390.99,0.00019826,2]
[351155350,1738366235623,-383.63085224,0.00019826,2]
[351155351,1738366235633,-500.0,0.00019826,2]
[351155352,1738366235644,-500.0,0.00019826,2]
[351155353,1738366235792,-1543.52,0.00019826,2]
[351155354,1738366235803,-500.0,0.00019826,2]
[351155355,1738366235813,-506.98,0.00019826,2]
[351155356,1738366235822,-500.0,0.00019826,2]
[351155357,1738366235831,-164.97841369,0.00019826,2]
[351155358,1738366235849,-335.02158631,0.00019826,2]
[351155359,1738366235858,-500.0,0.00019826,2]
[351155360,1738366235867,-500.0,0.00019826,2]
[351155361,1738366235877,-500.0,0.00019826,2]
[351155362,1738366235886,-500.0,0.00019826,2]
[351155363,1738366235896,-500.0,0.00019826,2]
[351155364,1738366235905,-500.0,0.00019826,2]
[351155365,1738366235914,-500.0,0.00019826,2]
[351155366,1738366235923,-500.0,0.00019826,2]
[351155367,1738366235932,-500.0,0.00019826,2]
[351155368,1738366235941,-1143.95,0.00019826,2]
[351155369,1738366235951,-500.0,0.00019826,2]
[351155370,1738366235960,-1923.6,0.00019826,2]
[351155371,1738366235969,-500.0,0.00019826,2]
[351155372,1738366235978,-500.0,0.00019826,2]
[351155373,1738366235987,-107.73260359,0.00019826,2]
[351155393,1738366238622,-309.5511601,0.00019452,2]
[351155394,1738366238632,-500.0,0.00019551,2]
[351155395,1738366238641,-500.0,0.00019688,2]
[351155396,1738366238651,-392.26739641,0.00019826,2]
[351155397,1738366238661,-763.94006224,0.00019826,2]
[351155404,1738366240737,-500.0,0.00019825,2]
[351155405,1738366240748,-222.20993776,0.00019826,2]
[351155406,1738366240757,-1018.21,0.00019826,2]
[351155407,1738366240766,-500.0,0.00019826,2]
[351155408,1738366240776,-500.0,0.00019826,2]
[351155409,1738366240786,-516.54,0.00019826,2]
[351155410,1738366240796,-500.0,0.00019826,2]
[351155411,1738366240805,-500.0,0.00019826,2]
[351155412,1738366240815,-500.0,0.00019827,2]
[351155413,1738366240824,-500.0,0.00019827,2]
[351155414,1738366240833,-500.0,0.00019827,2]
[351155415,1738366240843,-5090.64,0.00019827,2]
[351155416,1738366240852,-420.59,0.00019827,2]
[351155417,1738366240861,-153.0,0.00019836,2]
[351155418,1738366240870,-316.151642,0.00019836,2]
[351155419,1738366240879,-215.5610874,0.00019836,2]
[351155420,1738366240889,-153.0,0.00019836,2]
[351155421,1738366240898,-215.5610874,0.00019836,2]
[351155422,1738366240907,-151.0,0.00019836,2]
[351155423,1738366240917,-151.0,0.00019862,2]
[351155424,1738366240926,-151.0,0.00019862,2]
[351155425,1738366240935,-151.0,0.00019862,2]
[351155426,1738366240944,-199.804935,0.00019862,2]
[351155427,1738366240953,-199.804935,0.00019862,2]
[351155428,1738366240962,-151.0,0.00019862,2]
[351155429,1738366240971,-500.0,0.00019863,2]
[351155430,1738366240980,-500.0,0.00019863,2]
[351155431,1738366240989,-309.4848952,0.00019863,2]
[351155432,1738366240998,-215.1591513,0.00019863,2]
[351155433,1738366241007,-153.0,0.00019863,2]
[351155434,1738366241016,-263.0639823,0.00019863,2]
[351155435,1738366241025,-314.9728769,0.00019863,2]
[351155436,1738366241034,-310.09197429,0.00019864,2]
[351155437,1738366241043,-500.0,0.00019864,2]
[351155438,1738366241052,-500.0,0.00019864,2]
[351155439,1738366241062,-500.0,0.00019864,2]
[351155440,1738366241071,-500.0,0.00019864,2]
[351155441,1738366241079,-500.0,0.00019864,2]
[351155442,1738366241092,-500.0,0.00019864,2]
[351155443,1738366241101,-500.0,0.00019864,2]
[351155444,1738366241111,-500.0,0.00019864,2]
[351155445,1738366241120,-500.0,0.00019864,2]
[351155446,1738366241129,-500.0,0.00019864,2]
[351155447,1738366241138,-500.0,0.00019864,2]
[351155448,1738366241147,-500.0,0.00019864,2]
[351155449,1738366241156,-175.035449,0.00019864,2]
[351155450,1738366241166,-175.035449,0.00019864,2]
[351155451,1738366241176,-151.0,0.00019864,2]
[351155452,1738366241185,-360.750441,0.00019864,2]
[351155453,1738366241194,-228.79587107,0.00019864,2]
[351155454,1738366241203,-360.750441,0.00019864,2]
[351155455,1738366241212,-151.0,0.00019864,2]
[351155456,1738366241222,-171.754434,0.00019864,2]
[351155457,1738366241232,-171.754434,0.00019864,2]
[351155458,1738366241241,-151.0,0.00019864,2]
[351155459,1738366241250,-181.593914,0.00019864,2]
[351155460,1738366241259,-151.0,0.00019864,2]
[351155461,1738366241268,-181.593914,0.00019864,2]
[351155462,1738366241277,-151.0,0.00019864,2]
[351155463,1738366241286,-151.0,0.00019864,2]
[351155464,1738366241295,-151.0,0.00019865,2]
[351155465,1738366241304,-151.0,0.00019865,2]
[351155466,1738366241313,-264.788652,0.00019866,2]
[351155467,1738366241322,-151.0,0.00019866,2]
[351155468,1738366241331,-215.3039087,0.000199,2]
[351155469,1738366241343,-154.2803338,0.000199,2]
[351155470,1738366241354,-500.0,0.00019901,2]
[351155471,1738366241367,-500.0,0.00019941,2]
[351155472,1738366241377,-614.67596879,0.00019945,2]
[351155473,1738366241386,-10042.70486373,0.00019946,2]
[351155474,1738366241396,-500.0,0.00019952,2]
[351155475,1738366241405,-500.0,0.00019953,2]
[351155476,1738366241415,-500.0,0.00019953,2]
[351155477,1738366241424,-500.0,0.00019953,2]
[351155478,1738366241433,-175.279785,0.00019953,2]
[351155479,1738366241444,-220.052825,0.00019953,2]
[351155480,1738366241453,-220.052825,0.00019953,2]
[351155481,1738366241462,-151.0,0.00019953,2]
[351155482,1738366241471,-151.0,0.00019953,2]
[351155483,1738366241481,-151.0,0.00019953,2]
[351155484,1738366241490,-151.0,0.00019953,2]
[351155485,1738366241499,-500.0,0.00019953,2]
[351155486,1738366241509,-912.91,0.00019953,2]
[351155487,1738366241518,-3970.6,0.00019953,2]
[351155488,1738366241527,-500.0,0.00019953,2]
[351155489,1738366241539,-500.0,0.00019953,2]
[351155490,1738366241549,-500.0,0.00019953,2]
[351155491,1738366241558,-500.0,0.00019953,2]
[351155492,1738366241567,-862.82,0.00019953,2]
[351155493,1738366241577,-151.0,0.00019953,2]
[351155494,1738366241586,-500.0,0.00019953,2]
[351155495,1738366241595,-151.0,0.00019953,2]
[351155496,1738366241606,-151.0,0.00019953,2]
[351155497,1738366241616,-151.0,0.00019953,2]
[351155498,1738366241625,-500.0,0.00019953,2]
[351155499,1738366241635,-199.804935,0.00019953,2]
[351155500,1738366241644,-199.804935,0.00019953,2]
[351155501,1738366241653,-500.0,0.00019953,2]
[351155502,1738366241664,-500.0,0.00019953,2]
[351155503,1738366241674,-151.0,0.00019953,2]
[351155504,1738366241683,-151.0,0.00019954,2]
[351155505,1738366241692,-649.75,0.00019962,2]
[351155506,1738366241701,-500.0,0.00019962,2]
[351155507,1738366241711,-500.0,0.00019962,2]
[351155508,1738366241720,-500.0,0.00019962,2]
[351155509,1738366241729,-1271.56,0.00019962,2]
[351155510,1738366241739,-500.0,0.00019963,2]
[351155511,1738366241748,-500.0,0.00019963,2]
[351155512,1738366241757,-500.0,0.00019963,2]
[351155513,1738366241766,-500.0,0.00019963,2]
[351155514,1738366241775,-151.0,0.00019963,2]
[351155515,1738366241784,-500.0,0.00019963,2]
[351155516,1738366241793,-416.68859411,0.00019963,2]
[351155517,1738366241802,-151.0,0.00019963,2]
[351155518,1738366241812,-500.0,0.00019963,2]
[351155519,1738366241821,-500.0,0.00019963,2]
[351155520,1738366241830,-2341.67,0.00019963,2]
[351155521,1738366241839,-175.035449,0.00019963,2]
[351155522,1738366241848,-175.035449,0.00019963,2]
[351155523,1738366241858,-151.0,0.00019963,2]
[351155524,1738366241867,-360.750441,0.00019963,2]
[351155525,1738366241876,-1390.99,0.00019963,2]
[351155526,1738366241885,-360.750441,0.00019963,2]
[351155527,1738366241895,-151.0,0.00019963,2]
[351155528,1738366241905,-500.0,0.00019963,2]
[351155529,1738366241914,-171.754434,0.00019963,2]
[351155530,1738366241924,-171.754434,0.00019963,2]
[351155531,1738366241933,-1543.52,0.00019963,2]
[351155532,1738366241943,-500.0,0.00019963,2]
[351155533,1738366241952,-151.0,0.00019963,2]
[351155534,1738366241961,-506.98,0.00019963,2]
[351155535,1738366241970,-500.0,0.00019963,2]
[351155536,1738366241979,-450.59985151,0.00019963,2]
[351155537,1738366241988,-500.0,0.00019963,2]
[351155538,1738366241997,-500.0,0.00019963,2]
[351155539,1738366242006,-500.0,0.00019963,2]
[351155540,1738366242015,-500.0,0.00019963,2]
[351155541,1738366242025,-181.593914,0.00019963,2]
[351155542,1738366242034,-626.29607869,0.00019963,2]
[351155543,1738366242043,-151.0,0.00019963,2]
[351155544,1738366242053,-181.593914,0.00019963,2]
[351155545,1738366242062,-419.32122743,0.00019963,2]
[351155546,1738366242072,-500.0,0.00019963,2]
[351155547,1738366242081,-500.0,0.00019963,2]
[351155548,1738366242095,-500.0,0.00019963,2]
[351155549,1738366242104,-1143.95,0.00019963,2]
[351155550,1738366242114,-500.0,0.00019963,2]
[351155551,1738366242124,-1923.6,0.00019963,2]
[351155552,1738366242134,-500.0,0.00019963,2]
[351155553,1738366242144,-354.6802,0.00019963,2]
[351155554,1738366242153,-500.0,0.00019963,2]
[351155555,1738366242162,-986.15,0.00019963,2]
[351155556,1738366242175,-1018.21,0.00019963,2]
[351155557,1738366242185,-500.0,0.00019963,2]
[351155558,1738366242194,-516.54,0.00019963,2]
[351155559,1738366242203,-500.0,0.00019963,2]
[351155560,1738366242212,-500.0,0.00019963,2]
[351155561,1738366242221,-151.0,0.00019964,2]
[351155562,1738366242231,-500.0,0.00019964,2]
[351155563,1738366242240,-500.0,0.00019964,2]
[351155564,1738366242249,-500.0,0.00019964,2]
[351155565,1738366242260,-151.0,0.00019964,2]
[351155566,1738366242269,-5090.64,0.00019964,2]
[351155567,1738366242278,-241.08762499,0.00019973,2]
[351155568,1738366242288,-500.0,0.00019973,2]
[351155569,1738366242298,-259.84899794,0.00019973,2]
[351155570,1738366242307,-500.0,0.00019973,2]
[351155571,1738366242316,-500.0,0.00019973,2]
[351155572,1738366242325,-503.84221756,0.00019973,2]
[351155573,1738366242335,-500.57166148,0.00019973,2]
[351155574,1738366242344,-8863.21124137,0.0001999,7]
[351155575,1738366242357,-309.408,0.0001999,7]
[351155576,1738366243881,-500.0,0.00019679,2]
[351155578,1738366243890,-228.455172,0.00019816,2]
[351155579,1738366243900,-500.0,0.00019816,2]
[351155581,1738366243910,-228.455172,0.00019836,2]
[351155582,1738366243920,-206.887843,0.00019862,2]